Workbook

Sheet Sheet1
A1: 附件2
A2: 贵阳市民政局2019年事业单位公开招聘工作人员专业技术岗位面试成绩、总成绩及 进入体检环节人员名单
A3: 姓名 | B3: 考号 | C3: 报考单位及代码 | D3: 报考岗位及代码 | E3: 笔试成绩 | H3: 专业测试成绩 | J3: 面试 | L3: 笔试、专业测试、面试总成绩 | M3: 排名 | N3: 是否进入体检（1：1）
E4: 卷面成绩（300分） | F4: 百分制成绩（保留两位小数） | G4: 折算后成绩（30%） | H4: 百分制成绩 | I4: 折算后成绩（40%） | J4: 百分制成绩 | K4: 折算后成绩（30%）
A5: 娄辉 | B5: 1152016104625 | C5: 018市第二社会福利院 | D5: 01专业技术岗位 | E5: 177 | F5: =E5/3 -> 59.00 | G5: 17.70 | H5: 76.0 | I5: 30.40 | J5: 82.00 | K5: =J5*0.3 -> 24.60 | L5: =G5+I5+K5 -> 72.70 | M5: 1 | N5: 进入体检
A6: 孔多印 | B6: 1152019906029 | C6: 018市第二社会福利院 | D6: 01专业技术岗位 | E6: 185.5 | F6: 61.83 | G6: 18.55 | H6: 73.0 | I6: 29.20 | J6: 80.60 | K6: 24.18 | L6: 71.93 | M6: 2
A7: 丁洋 | B7: 1152019000406 | C7: 018市第二社会福利院 | D7: 01专业技术岗位 | E7: 198 | F7: =E7/3 -> 66.00 | G7: 19.80 | H7: 71.5 | I7: 28.60 | J7: 78.40 | K7: =J7*0.3 -> 23.52 | L7: =G7+I7+K7 -> 71.92 | M7: 3
A8: 徐沁颉 | B8: 1152016104311 | C8: 020市精神病医院 | D8: 02专业技术岗位 | E8: 173 | F8: =E8/3 -> 57.67 | G8: 17.30 | H8: 79.0 | I8: 31.60 | J8: 86.00 | K8: 25.80 | L8: =G8+I8+K8 -> 74.70 | M8: 1 | N8: 进入体检
A9: 盛明昕 | B9: 1152019200428 | C9: 020市精神病医院 | D9: 02专业技术岗位 | E9: 164.5 | F9: =E9/3 -> 54.83 | G9: 16.45 | H9: 75.0 | I9: 30.00 | J9: 82.00 | K9: =J9*0.3 -> 24.60 | L9: =G9+I9+K9 -> 71.05 | M9: 2
A10: 陈梦楼 | B10: 1152018205124 | C10: 020市精神病医院 | D10: 02专业技术岗位 | E10: 151.5 | F10: 50.50 | G10: 15.15 | H10: 78.5 | I10: 31.40 | J10: 缺考 | L10: 46.55
A11: 郑梦晗 | B11: 1152018205530 | C11: 020市精神病医院 | D11: 03专业技术岗位 | E11: 180 | F11: 60.00 | G11: 18.00 | H11: 84.5 | I11: 33.80 | J11: 87.60 | K11: 26.28 | L11: 78.08 | M11: 1 | N11: 进入体检
A12: 张家睿 | B12: 1152016202215 | C12: 020市精神病医院 | D12: 03专业技术岗位 | E12: 184.5 | F12: =E12/3 -> 61.50 | G12: 18.45 | H12: 80.0 | I12: 32.00 | J12: 84.00 | K12: =J12*0.3 -> 25.20 | L12: =G12+I12+K12 -> 75.65 | M12: 2
A13: 陈方勤 | B13: 1152019002318 | C13: 020市精神病医院 | D13: 03专业技术岗位 | E13: 181 | F13: =E13/3 -> 60.33 | G13: 18.10 | H13: 83.5 | I13: 33.40 | J13: 79.60 | K13: =J13*0.3 -> 23.88 | L13: =G13+I13+K13 -> 75.38 | M13: 3
A14: 杨怡帆 | B14: 1152012900607 | C14: 020市精神病医院 | D14: 04专业技术岗位 | E14: 181 | F14: 60.33 | G14: 18.10 | H14: 77.5 | I14: 31.00 | J14: 82.00 | K14: 24.60 | L14: 73.70 | M14: 1 | N14: 进入体检
A15: 王大志 | B15: 1152018902225 | C15: 020市精神病医院 | D15: 04专业技术岗位 | E15: 174 | F15: 58.00 | G15: 17.40 | H15: 76.5 | I15: 30.60 | J15: 80.00 | K15: 24.00 | L15: 72.00 | M15: 2
A16: 田玲玲 | B16: 1152016104503 | C16: 020市精神病医院 | D16: 04专业技术岗位 | E16: 145 | F16: 48.33 | G16: 14.50 | H16: 79.5 | I16: 31.80 | J16: 缺考 | L16: 46.30
A17: 黄军火 | B17: 1152019905710 | C17: 020市精神病医院 | D17: 05专业技术岗位 | E17: 137.5 | F17: 45.83 | G17: 13.75 | H17: 68.5 | I17: 27.40 | J17: 82.20 | K17: 24.66 | L17: 65.81 | M17: 1 | N17: 进入体检
A18: 周丽琼 | B18: 1152019903616 | C18: 020市精神病医院 | D18: 05专业技术岗位 | E18: 138 | F18: =E18/3 -> 46.00 | G18: 13.80 | H18: 65.5 | I18: 26.20 | J18: 77.60 | K18: =J18*0.3 -> 23.28 | L18: =G18+I18+K18 -> 63.28 | M18: 2
A19: 陈艳桃 | B19: 1152011200417 | C19: 020市精神病医院 | D19: 05专业技术岗位 | E19: 114 | F19: 38.00 | G19: 11.40 | H19: 73.5 | I19: 29.40 | J19: 71.80 | K19: 21.54 | L19: 62.34 | M19: 3
A20: 廖雯云 | B20: 1152018602719 | C20: 020市精神病医院 | D20: 06专业技术岗位 | E20: 177.5 | F20: 59.17 | G20: 17.75 | H20: 74.0 | I20: 29.60 | J20: 82.60 | K20: 24.78 | L20: 72.13 | M20: 1 | N20: 进入体检
A21: 敖漫漫 | B21: 1152019000103 | C21: 020市精神病医院 | D21: 06专业技术岗位 | E21: 168 | F21: 56.00 | G21: 16.80 | H21: 73.5 | I21: 29.40 | J21: 85.40 | K21: 25.62 | L21: 71.82 | M21: 2
A22: 陈隆姣 | B22: 1152016202729 | C22: 020市精神病医院 | D22: 06专业技术岗位 | E22: 150 | F22: 50.00 | G22: 15.00 | H22: 74.0 | I22: 29.60 | J22: 76.20 | K22: 22.86 | L22: 67.46 | M22: 3
A23: 龙奕丹 | B23: 1152018603109 | C23: 022市慈善总会办公室 | D23: 02专业技术岗位 | E23: 201.5 | F23: 67.17 | G23: 20.15 | H23: 74.0 | I23: 29.60 | J23: 84.80 | K23: 25.44 | L23: 75.19 | M23: 1 | N23: 进入体检
A24: 何懿 | B24: 1152016104815 | C24: 022市慈善总会办公室 | D24: 02专业技术岗位 | E24: 183.5 | F24: =E24/3 -> 61.17 | G24: 18.35 | H24: 71.5 | I24: 28.60 | J24: 78.20 | K24: =J24*0.3 -> 23.46 | L24: =G24+I24+K24 -> 70.41 | M24: 2
A25: 王雪雪 | B25: 1152019901620 | C25: 022市慈善总会办公室 | D25: 02专业技术岗位 | E25: 174.5 | F25: 58.17 | G25: 17.45 | H25: 75.0 | I25: 30.00 | J25: 74.40 | K25: 22.32 | L25: 69.77 | M25: 3
A26: 王千珏 | B26: 1152019004810 | C26: 024市社会工作指导中心 | D26: 02专业技术岗位 | E26: 185 | F26: 61.67 | G26: 18.50 | H26: 73.5 | I26: 29.40 | J26: 83.20 | K26: 24.96 | L26: 72.86 | M26: 1 | N26: 进入体检
A27: 代鸿宇 | B27: 1152018902226 | C27: 024市社会工作指导中心 | D27: 02专业技术岗位 | E27: 189.5 | F27: =E27/3 -> 63.17 | G27: 18.95 | H27: 70.5 | I27: 28.20 | J27: 85.40 | K27: =J27*0.3 -> 25.62 | L27: =G27+I27+K27 -> 72.77 | M27: 2 | N27: 进入体检
A28: 马丽娟 | B28: 1152019201502 | C28: 024市社会工作指导中心 | D28: 02专业技术岗位 | E28: 184 | F28: =E28/3 -> 61.33 | G28: 18.40 | H28: 77.0 | I28: 30.80 | J28: 77.00 | K28: =J28*0.3 -> 23.10 | L28: =G28+I28+K28 -> 72.30 | M28: 3
A29: 谢凯莹 | B29: 1152012701302 | C29: 024市社会工作指导中心 | D29: 02专业技术岗位 | E29: 182 | F29: =E29/3 -> 60.67 | G29: 18.20 | H29: 72.5 | I29: 29.00 | J29: 81.00 | K29: =J29*0.3 -> 24.30 | L29: =G29+I29+K29 -> 71.50 | M29: 4
A30: 黄玉岚 | B30: 1152019000918 | C30: 024市社会工作指导中心 | D30: 02专业技术岗位 | E30: 179.5 | F30: =E30/3 -> 59.83 | G30: 17.95 | H30: 72.5 | I30: 29.00 | J30: 79.20 | K30: =J30*0.3 -> 23.76 | L30: =G30+I30+K30 -> 70.71 | M30: 5
A31: 袁永红 | B31: 1152012902429 | C31: 024市社会工作指导中心 | D31: 02专业技术岗位 | E31: 181.5 | F31: 60.50 | G31: 18.15 | H31: 73.5 | I31: 29.40 | J31: 74.20 | K31: 22.26 | L31: 69.81 | M31: 6
A32: 成雪捃 | B32: 1152019001915 | C32: 024市社会工作指导中心 | D32: 03专业技术岗位 | E32: 184.5 | F32: =E32/3 -> 61.50 | G32: 18.45 | H32: 78.5 | I32: 31.40 | J32: 83.80 | K32: 25.14 | L32: 74.99 | M32: 1 | N32: 进入体检
A33: 陈琦月 | B33: 1152018202719 | C33: 024市社会工作指导中心 | D33: 03专业技术岗位 | E33: 189.5 | F33: =E33/3 -> 63.17 | G33: 18.95 | H33: 66.0 | I33: 26.40 | J33: 81.00 | K33: =J33*0.3 -> 24.30 | L33: =G33+I33+K33 -> 69.65 | M33: 2 | N33: 进入体检
A34: 张桂瑜 | B34: 1152018902326 | C34: 024市社会工作指导中心 | D34: 03专业技术岗位 | E34: 169 | F34: =E34/3 -> 56.33 | G34: 16.90 | H34: 68.5 | I34: 27.40 | J34: 81.60 | K34: =J34*0.3 -> 24.48 | L34: =G34+I34+K34 -> 68.78 | M34: 3
A35: 吴超英 | B35: 1152012902113 | C35: 024市社会工作指导中心 | D35: 03专业技术岗位 | E35: 163 | F35: 54.33 | G35: 16.30 | H35: 73.0 | I35: 29.20 | J35: 75.00 | K35: 22.50 | L35: 68.00 | M35: 4
A36: 张闵飘 | B36: 1152019003203 | C36: 024市社会工作指导中心 | D36: 03专业技术岗位 | E36: 162.5 | F36: =E36/3 -> 54.17 | G36: 16.25 | H36: 69.5 | I36: 27.80 | J36: 75.20 | K36: =J36*0.3 -> 22.56 | L36: =G36+I36+K36 -> 66.61 | M36: 5
A37: 张玲 | B37: 1152019900616 | C37: 024市社会工作指导中心 | D37: 03专业技术岗位 | E37: 185.5 | F37: 61.83 | G37: 18.55 | H37: 67.0 | I37: 26.80 | J37: 70.00 | K37: 21.00 | L37: 66.35 | M37: 6
A38: 张贵菊 | B38: 1152019004927 | C38: 024市社会工作指导中心 | D38: 04专业技术岗位 | E38: 184 | F38: =E38/3 -> 61.33 | G38: 18.40 | H38: 75.0 | I38: 30.00 | J38: 74.00 | K38: 22.20 | L38: 70.60 | M38: 1 | N38: 进入体检
A39: 杨秀清 | B39: 1152019902806 | C39: 024市社会工作指导中心 | D39: 04专业技术岗位 | E39: 179.5 | F39: 59.83 | G39: 17.95 | H39: 72.0 | I39: 28.80 | J39: 78.60 | K39: 23.58 | L39: 70.33 | M39: 2
A40: 左明涛 | B40: 1152016104917 | C40: 024市社会工作指导中心 | D40: 04专业技术岗位 | E40: 178 | F40: 59.33 | G40: 17.80 | H40: 72.0 | I40: 28.80 | J40: 74.20 | K40: 22.26 | L40: 68.86 | M40: 3
A41: 陈玫希 | B41: 1152018600418 | C41: 025市涉外婚姻收养登记服务中心 | D41: 04专业技术岗位 | E41: 171 | F41: =E41/3 -> 57.00 | G41: 17.10 | H41: 77.5 | I41: 31.00 | J41: 84.60 | K41: 25.38 | L41: 73.48 | M41: 1 | N41: 进入体检
A42: 张迪 | B42: 1152016200803 | C42: 025市涉外婚姻收养登记服务中心 | D42: 04专业技术岗位 | E42: 171 | F42: 57.00 | G42: 17.10 | H42: 72.5 | I42: 29.00 | J42: 83.40 | K42: 25.02 | L42: 71.12 | M42: 2
A43: 方圆 | B43: 1152016101925 | C43: 025市涉外婚姻收养登记服务中心 | D43: 04专业技术岗位 | E43: 168 | F43: 56.00 | G43: 16.80 | H43: 72.5 | I43: 29.00 | J43: 79.80 | K43: 23.94 | L43: 69.74 | M43: 3
A44: 潘万根 | B44: 1152018200717 | C44: 023市民政信息中心 | D44: 01专业技术岗位 | E44: 191 | F44: =E44/3 -> 63.67 | G44: 19.10 | H44: 67.5 | I44: 27.00 | J44: 78.20 | K44: 23.46 | L44: 69.56 | M44: 1 | N44: 进入体检
A45: 陈明群 | B45: 1152018202301 | C45: 023市民政信息中心 | D45: 01专业技术岗位 | E45: 182.5 | F45: 60.83 | G45: 18.25 | H45: 69.0 | I45: 27.60 | J45: 79.00 | K45: 23.70 | L45: 69.55 | M45: 2
A46: 宋昕洋 | B46: 1152019903714 | C46: 023市民政信息中心 | D46: 01专业技术岗位 | E46: 181 | F46: 60.33 | G46: 18.10 | H46: 69.0 | I46: 27.60 | J46: 77.20 | K46: 23.16 | L46: 68.86 | M46: 3
A47: 李树琴 | B47: 1152019001410 | C47: 019市儿童福利院 | D47: 02专业技术岗位 | E47: 132.5 | F47: =E47/3 -> 44.17 | G47: 13.25 | H47: 69.5 | I47: 27.80 | J47: 缺考 | L47: 41.05
